[Event "*** Titled Tuesday Blitz"]
[Site "Chess.com"]
[Date "2021.04.06"]
[Round "9"]
[White "Sanan_Sjugirov"]
[Black "Eltaj_Safarli"]
[Result "1/2-1/2"]
[WhiteElo "2878"]
[BlackElo "2921"]
[TimeControl "180+1"]
[EndTime "11:45:59 PDT"]
[Termination "Game drawn by repetition"]

1. e4 {[%clk 0:03:00.9]} 1... c5 {[%clk 0:02:59.3]} 2. Nf3 {[%clk 0:03:00.5]}
2... Nc6 {[%clk 0:02:58.4]} 3. Bb5 {[%clk 0:02:55.3]} 3... d6 {[%clk 0:02:57.9]}
4. O-O {[%clk 0:02:50]} 4... Bd7 {[%clk 0:02:57.9]} 5. Re1 {[%clk 0:02:48.9]}
5... Nf6 {[%clk 0:02:58.2]} 6. c3 {[%clk 0:02:47.3]} 6... a6 {[%clk 0:02:58.1]}
7. Bf1 {[%clk 0:02:36.3]} 7... Bg4 {[%clk 0:02:58.4]} 8. d4 {[%clk 0:02:28.2]}
8... cxd4 {[%clk 0:02:57.3]} 9. cxd4 {[%clk 0:02:29.1]} 9... e5 {[%clk
0:02:57.8]} 10. Be3 {[%clk 0:02:26.8]} 10... Be7 {[%clk 0:02:57.9]} 11. Nc3
{[%clk 0:02:19.1]} 11... O-O {[%clk 0:02:52.7]} 12. d5 {[%clk 0:02:16.3]} 12...
Nb8 {[%clk 0:02:52]} 13. Qb3 {[%clk 0:02:11.2]} 13... Bxf3 {[%clk 0:02:49.1]}
14. gxf3 {[%clk 0:02:11]} 14... Nbd7 {[%clk 0:02:44.7]} 15. Qxb7 {[%clk
0:02:05.4]} 15... Rb8 {[%clk 0:02:44.6]} 16. Qxa6 {[%clk 0:02:05.5]} 16... Nh5
{[%clk 0:02:44.9]} 17. Bb5 {[%clk 0:01:47.6]} 17... Nc5 {[%clk 0:02:36.1]} 18.
Qa3 {[%clk 0:01:22.7]} 18... Bg5 {[%clk 0:02:09.6]} 19. Bxc5 {[%clk 0:01:15.7]}
19... dxc5 {[%clk 0:02:09.1]} 20. Qxc5 {[%clk 0:01:16.1]} 20... Bd2 {[%clk
0:01:43.7]} 21. Red1 {[%clk 0:01:04.2]} 21... Qg5+ {[%clk 0:01:41.8]} 22. Kh1
{[%clk 0:01:03.8]} 22... Nf4 {[%clk 0:01:42.2]} 23. Rg1 {[%clk 0:00:51.6]} 23...
Qh5 {[%clk 0:01:37.4]} 24. Rg3 {[%clk 0:00:51.4]} 24... Rfc8 {[%clk 0:01:32.4]}
25. Bc6 {[%clk 0:00:38.5]} 25... Rxb2 {[%clk 0:01:32.1]} 26. Rag1 {[%clk
0:00:30.3]} 26... g6 {[%clk 0:01:27.6]} 27. Nd1 {[%clk 0:00:20.9]} 27... Bb4
{[%clk 0:01:09.5]} 28. Qc4 {[%clk 0:00:13.1]} 28... Rb1 {[%clk 0:01:06.6]} 29.
Qc2 {[%clk 0:00:11.2]} 29... Ra1 {[%clk 0:00:40.9]} 30. Qb2 {[%clk 0:00:09.9]}
30... Rxd1 {[%clk 0:00:41.3]} 31. Rxd1 {[%clk 0:00:09.6]} 31... Bc5 {[%clk
0:00:41.7]} 32. Qc2 {[%clk 0:00:07.8]} 32... Bd4 {[%clk 0:00:37.4]} 33. a4
{[%clk 0:00:05.1]} 33... Rb8 {[%clk 0:00:37.8]} 34. Rb1 {[%clk 0:00:03.8]} 34...
Rxb1+ {[%clk 0:00:35.2]} 35. Qxb1 {[%clk 0:00:04.7]} 35... Bxf2 {[%clk
0:00:36.1]} 36. Rg4 {[%clk 0:00:04.5]} 36... Qh3 {[%clk 0:00:35.8]} 37. Rxf4
{[%clk 0:00:04.5]} 37... exf4 {[%clk 0:00:33.1]} 38. Qd1 {[%clk 0:00:04.7]}
38... Bg3 {[%clk 0:00:30.8]} 39. Qe2 {[%clk 0:00:04.9]} 39... Bxh2 {[%clk
0:00:30]} 40. Qxh2 {[%clk 0:00:05.1]} 40... Qf1+ {[%clk 0:00:29.7]} 41. Qg1
{[%clk 0:00:05.5]} 41... Qh3+ {[%clk 0:00:29.9]} 42. Qh2 {[%clk 0:00:06]} 42...
Qf1+ {[%clk 0:00:28.3]} 43. Qg1 {[%clk 0:00:06.3]} 43... Qh3+ {[%clk 0:00:25.8]}
44. Qh2 {[%clk 0:00:06.5]} 1/2-1/2

[Event "*** Titled Tuesday Blitz"]
[Site "Chess.com"]
[Date "2021.04.06"]
[Round "9"]
[White "pastouche06"]
[Black "CrushingKings"]
[Result "1-0"]
[WhiteElo "2615"]
[BlackElo "2478"]
[TimeControl "180+1"]
[EndTime "11:46:01 PDT"]
[Termination "pastouche06 won on time"]

1. d4 {[%clk 0:03:00.9]} 1... Nf6 {[%clk 0:02:56.8]} 2. c4 {[%clk 0:03:00.3]}
2... e6 {[%clk 0:02:57]} 3. Nc3 {[%clk 0:02:54.5]} 3... Bb4 {[%clk 0:02:57.5]}
4. e3 {[%clk 0:02:54.4]} 4... O-O {[%clk 0:02:57.2]} 5. Ne2 {[%clk 0:02:54.7]}
5... c6 {[%clk 0:02:57.5]} 6. a3 {[%clk 0:02:54.4]} 6... Ba5 {[%clk 0:02:58.1]}
7. c5 {[%clk 0:02:54.7]} 7... d5 {[%clk 0:02:41.5]} 8. cxd6 {[%clk 0:02:55.6]}
8... Qxd6 {[%clk 0:02:41.4]} 9. b4 {[%clk 0:02:51]} 9... Bc7 {[%clk 0:02:40.2]}
10. g3 {[%clk 0:02:51.5]} 10... e5 {[%clk 0:02:37.4]} 11. Bg2 {[%clk 0:02:50.9]}
11... Bg4 {[%clk 0:02:36.2]} 12. h3 {[%clk 0:02:39.2]} 12... Bh5 {[%clk
0:02:24.3]} 13. O-O {[%clk 0:02:08.8]} 13... Bg6 {[%clk 0:02:11.3]} 14. e4
{[%clk 0:01:48.9]} 14... Rd8 {[%clk 0:01:55.9]} 15. Be3 {[%clk 0:01:42.8]} 15...
Nbd7 {[%clk 0:01:43.1]} 16. Qb3 {[%clk 0:01:25]} 16... exd4 {[%clk 0:01:30]} 17.
Nxd4 {[%clk 0:01:25.9]} 17... Qe7 {[%clk 0:01:28.4]} 18. Nf5 {[%clk 0:00:54.3]}
18... Bxf5 {[%clk 0:01:26.2]} 19. exf5 {[%clk 0:00:55.2]} 19... Bxg3 {[%clk
0:01:00.6]} 20. fxg3 {[%clk 0:00:56.1]} 20... Qxe3+ {[%clk 0:00:59.5]} 21. Kh2
{[%clk 0:00:56.8]} 21... Ne5 {[%clk 0:00:54.4]} 22. Rae1 {[%clk 0:00:54.5]}
22... Qh6 {[%clk 0:00:40]} 23. Kg1 {[%clk 0:00:49.3]} 23... Re8 {[%clk
0:00:29.9]} 24. b5 {[%clk 0:00:43.5]} 24... Rad8 {[%clk 0:00:28.5]} 25. bxc6
{[%clk 0:00:41.1]} 25... bxc6 {[%clk 0:00:29.4]} 26. Ne4 {[%clk 0:00:36.1]}
26... Nxe4 {[%clk 0:00:12.6]} 27. Rxe4 {[%clk 0:00:37]} 27... Rd2 {[%clk
0:00:06.4]} 28. Rfe1 {[%clk 0:00:37]} 28... Qd6 {[%clk 0:00:06.7]} 29. Qe3
{[%clk 0:00:31.2]} 29... f6 {[%clk 0:00:06.7]} 30. Qb3+ {[%clk 0:00:27.8]} 30...
Kh8 {[%clk 0:00:07.3]} 31. R4e2 {[%clk 0:00:23.1]} 31... Rd3 {[%clk 0:00:06.6]}
32. Qf7 {[%clk 0:00:20.3]} 32... Rf8 {[%clk 0:00:05.9]} 33. Qxa7 {[%clk
0:00:18]} 33... c5 {[%clk 0:00:04.5]} 34. Re3 {[%clk 0:00:13.2]} 34... Rxe3
{[%clk 0:00:02.3]} 35. Rxe3 {[%clk 0:00:14.1]} 35... Qd4 {[%clk 0:00:02.9]} 36.
Kf2 {[%clk 0:00:11.7]} 36... Nd3+ {[%clk 0:00:01.4]} 37. Ke2 {[%clk 0:00:12.1]}
37... Nc1+ {[%clk 0:00:01.5]} 38. Kf3 {[%clk 0:00:11.3]} 1-0

[Event "*** Titled Tuesday Blitz"]
[Site "Chess.com"]
[Date "2021.04.06"]
[Round "9"]
[White "ShahMatKanal"]
[Black "lukazz029"]
[Result "1-0"]
[WhiteElo "2444"]
[BlackElo "2139"]
[TimeControl "180+1"]
[EndTime "11:46:02 PDT"]
[Termination "ShahMatKanal won by resignation"]

1. e4 {[%clk 0:03:00.9]} 1... c5 {[%clk 0:02:59.4]} 2. Nf3 {[%clk 0:02:59.6]}
2... d6 {[%clk 0:02:55.3]} 3. b4 {[%clk 0:02:58.6]} 3... cxb4 {[%clk 0:02:47.5]}
4. a3 {[%clk 0:02:57.8]} 4... bxa3 {[%clk 0:02:48.4]} 5. Nxa3 {[%clk 0:02:58.1]}
5... e6 {[%clk 0:02:49.3]} 6. d4 {[%clk 0:02:57.5]} 6... Nf6 {[%clk 0:02:46.3]}
7. Bd3 {[%clk 0:02:57.6]} 7... Be7 {[%clk 0:02:44.6]} 8. O-O {[%clk 0:02:57.7]}
8... O-O {[%clk 0:02:42.8]} 9. c4 {[%clk 0:02:58]} 9... Nc6 {[%clk 0:02:41.1]}
10. Bb2 {[%clk 0:02:56.3]} 10... Nd7 {[%clk 0:02:39]} 11. Nb5 {[%clk 0:02:30.9]}
11... a6 {[%clk 0:02:30.9]} 12. Qe2 {[%clk 0:02:21.5]} 12... Rb8 {[%clk
0:02:25.2]} 13. Nc3 {[%clk 0:02:16.5]} 13... Bf6 {[%clk 0:02:21.8]} 14. Qe3
{[%clk 0:01:57.4]} 14... Qb6 {[%clk 0:02:12.9]} 15. Na4 {[%clk 0:01:52.5]} 15...
Qa7 {[%clk 0:02:09.5]} 16. e5 {[%clk 0:01:33.6]} 16... dxe5 {[%clk 0:02:08.1]}
17. Qe4 {[%clk 0:01:33.8]} 17... g6 {[%clk 0:02:06.6]} 18. dxe5 {[%clk
0:01:33.7]} 18... Bg7 {[%clk 0:02:02.3]} 19. Ba3 {[%clk 0:01:20.7]} 19... Re8
{[%clk 0:01:57.4]} 20. Bd6 {[%clk 0:01:20.1]} 20... Ra8 {[%clk 0:01:55.5]} 21.
c5 {[%clk 0:01:17.4]} 21... Ne7 {[%clk 0:01:47.5]} 22. g4 {[%clk 0:00:55.6]}
22... Nd5 {[%clk 0:01:39.2]} 23. Rfb1 {[%clk 0:00:49.4]} 23... Nb8 {[%clk
0:01:31]} 24. Nb6 {[%clk 0:00:45]} 24... Nc6 {[%clk 0:01:22.9]} 25. Nxa8 {[%clk
0:00:35]} 25... Qxa8 {[%clk 0:01:23.8]} 26. Rc1 {[%clk 0:00:28.1]} 26... Bd7
{[%clk 0:01:21.6]} 27. h4 {[%clk 0:00:27.3]} 27... Ncb4 {[%clk 0:01:20.9]} 28.
Be2 {[%clk 0:00:23.3]} 28... Bc6 {[%clk 0:01:20.7]} 29. Qc4 {[%clk 0:00:22.9]}
29... Bb5 {[%clk 0:01:19.1]} 30. Qxb5 {[%clk 0:00:21.3]} 30... axb5 {[%clk
0:01:17.8]} 31. Rxa8 {[%clk 0:00:22.2]} 31... Rxa8 {[%clk 0:01:17.6]} 32. Bxb5
{[%clk 0:00:23.1]} 32... Nc6 {[%clk 0:01:17.2]} 33. Bxc6 {[%clk 0:00:13.3]}
33... bxc6 {[%clk 0:01:18.1]} 34. Rb1 {[%clk 0:00:13.8]} 34... h6 {[%clk
0:01:12]} 35. Kg2 {[%clk 0:00:07]} 35... Ra4 {[%clk 0:01:06.1]} 36. Kg3 {[%clk
0:00:07.2]} 36... h5 {[%clk 0:01:03.2]} 37. Rb8+ {[%clk 0:00:06.6]} 37... Kh7
{[%clk 0:01:02.8]} 38. Ng5+ {[%clk 0:00:06.9]} 38... Kh6 {[%clk 0:01:01.3]} 39.
Nxf7+ {[%clk 0:00:07.8]} 39... Kh7 {[%clk 0:01:01.4]} 40. Ng5+ {[%clk
0:00:06.9]} 40... Kh6 {[%clk 0:01:01.6]} 41. gxh5 {[%clk 0:00:07.5]} 41... gxh5
{[%clk 0:00:59.2]} 42. Nxe6 {[%clk 0:00:07.7]} 42... Rg4+ {[%clk 0:00:57.8]} 43.
Kh3 {[%clk 0:00:08.1]} 43... Nf4+ {[%clk 0:00:56.6]} 44. Nxf4 {[%clk 0:00:08]}
44... Rxf4 {[%clk 0:00:56.3]} 45. e6 {[%clk 0:00:06]} 45... Re4 {[%clk
0:00:50.4]} 46. e7 {[%clk 0:00:05.3]} 46... Bf6 {[%clk 0:00:50.6]} 47. e8=Q
{[%clk 0:00:04.1]} 47... Rxe8 {[%clk 0:00:50]} 48. Rxe8 {[%clk 0:00:03.3]} 48...
Bd4 {[%clk 0:00:50.4]} 49. Re6+ {[%clk 0:00:03.2]} 49... Kg7 {[%clk 0:00:50.8]}
50. Be5+ {[%clk 0:00:03.4]} 50... Bxe5 {[%clk 0:00:50.3]} 51. Rxe5 {[%clk
0:00:04.3]} 51... Kf6 {[%clk 0:00:51.2]} 52. Rg5 {[%clk 0:00:04.4]} 52... Ke6
{[%clk 0:00:50.9]} 53. Rxh5 {[%clk 0:00:05.3]} 53... Kd7 {[%clk 0:00:51.2]} 54.
Rg5 {[%clk 0:00:06.2]} 54... Kc7 {[%clk 0:00:52]} 55. f4 {[%clk 0:00:07.1]}
55... Kb7 {[%clk 0:00:52.9]} 56. h5 {[%clk 0:00:08]} 56... Ka6 {[%clk
0:00:53.8]} 57. h6 {[%clk 0:00:08.9]} 57... Kb5 {[%clk 0:00:54.7]} 58. h7 {[%clk
0:00:09.8]} 58... Kb4 {[%clk 0:00:55.6]} 59. h8=Q {[%clk 0:00:10.7]} 59... Kb3
{[%clk 0:00:56.5]} 60. Qe5 {[%clk 0:00:11.2]} 1-0

[Event "*** Titled Tuesday Blitz"]
[Site "Chess.com"]
[Date "2021.04.06"]
[Round "9"]
[White "Arseniy_Nesterov"]
[Black "elohunter1999"]
[Result "1-0"]
[WhiteElo "2749"]
[BlackElo "2535"]
[TimeControl "180+1"]
[EndTime "11:46:03 PDT"]
[Termination "Arseniy_Nesterov won on time"]

1. d4 {[%clk 0:03:00.9]} 1... Nf6 {[%clk 0:02:59.5]} 2. c4 {[%clk 0:03:00.9]}
2... c5 {[%clk 0:02:59.6]} 3. d5 {[%clk 0:03:00.9]} 3... e6 {[%clk 0:02:58.8]}
4. Nc3 {[%clk 0:03:00.4]} 4... exd5 {[%clk 0:02:59.5]} 5. cxd5 {[%clk
0:03:01.3]} 5... d6 {[%clk 0:03:00.4]} 6. Nf3 {[%clk 0:03:01.8]} 6... g6 {[%clk
0:03:00.3]} 7. Nd2 {[%clk 0:03:02.3]} 7... Bg7 {[%clk 0:02:59.6]} 8. Nc4 {[%clk
0:03:02.3]} 8... O-O {[%clk 0:02:59.9]} 9. Bf4 {[%clk 0:03:02.4]} 9... Ne8
{[%clk 0:02:59.5]} 10. e3 {[%clk 0:03:02.5]} 10... g5 {[%clk 0:02:44]} 11. Bg3
{[%clk 0:02:59.2]} 11... f5 {[%clk 0:02:44.6]} 12. f4 {[%clk 0:02:55.2]} 12...
Qe7 {[%clk 0:02:33.3]} 13. Qd3 {[%clk 0:02:30.3]} 13... a6 {[%clk 0:02:18.9]}
14. Nb6 {[%clk 0:02:28.9]} 14... Nd7 {[%clk 0:02:04.5]} 15. Nxa8 {[%clk
0:02:27.1]} 15... b5 {[%clk 0:02:04.8]} 16. Be2 {[%clk 0:02:19.1]} 16... Bb7
{[%clk 0:02:03.9]} 17. O-O {[%clk 0:02:09.2]} 17... Bxa8 {[%clk 0:02:03.5]} 18.
fxg5 {[%clk 0:02:07.1]} 18... c4 {[%clk 0:02:03.4]} 19. Qd2 {[%clk 0:02:02.5]}
19... Qxg5 {[%clk 0:02:01.3]} 20. Bf4 {[%clk 0:02:01.1]} 20... Qe7 {[%clk
0:02:00.8]} 21. a4 {[%clk 0:01:55.1]} 21... Nc7 {[%clk 0:01:53.6]} 22. axb5
{[%clk 0:01:53.2]} 22... axb5 {[%clk 0:01:54.5]} 23. Ra7 {[%clk 0:01:50.8]}
23... Rc8 {[%clk 0:01:49.2]} 24. Rxc7 {[%clk 0:01:39.6]} 24... Rxc7 {[%clk
0:01:48.9]} 25. Nxb5 {[%clk 0:01:40.2]} 25... Rb7 {[%clk 0:01:38.4]} 26. Bxc4
{[%clk 0:01:20.6]} 26... Ne5 {[%clk 0:01:35]} 27. b3 {[%clk 0:01:18.4]} 27...
Rb8 {[%clk 0:01:25]} 28. Nd4 {[%clk 0:01:14.4]} 28... Qc7 {[%clk 0:00:46.4]} 29.
Nxf5 {[%clk 0:01:03.7]} 29... Nxc4 {[%clk 0:00:44.5]} 30. bxc4 {[%clk
0:01:03.7]} 30... Qxc4 {[%clk 0:00:40.2]} 31. Bxd6 {[%clk 0:00:59.3]} 31... Rd8
{[%clk 0:00:20.5]} 32. Nxg7 {[%clk 0:00:52.6]} 32... Rxd6 {[%clk 0:00:16]} 33.
Nf5 {[%clk 0:00:52.3]} 33... Rd7 {[%clk 0:00:14.6]} 34. e4 {[%clk 0:00:47.5]}
34... Qc5+ {[%clk 0:00:04.7]} 35. Kh1 {[%clk 0:00:47.2]} 35... Qf8 {[%clk
0:00:03.7]} 36. h3 {[%clk 0:00:43.6]} 36... Kh8 {[%clk 0:00:03.8]} 37. Qd4+
{[%clk 0:00:40.3]} 37... Kg8 {[%clk 0:00:03.9]} 38. Rf3 {[%clk 0:00:40.3]} 38...
h6 {[%clk 0:00:03.8]} 39. Rg3+ {[%clk 0:00:37.4]} 39... Kh7 {[%clk 0:00:04.1]}
40. Qb6 {[%clk 0:00:37.4]} 40... Bxd5 {[%clk 0:00:02.1]} 41. Qg6+ {[%clk
0:00:37.1]} 41... Kh8 {[%clk 0:00:02.1]} 42. exd5 {[%clk 0:00:37.4]} 42... Rh7
{[%clk 0:00:01.2]} 43. d6 {[%clk 0:00:35.6]} 43... h5 {[%clk 0:00:01.7]} 44. Re3
{[%clk 0:00:31.8]} 44... h4 {[%clk 0:00:01.9]} 45. Re8 {[%clk 0:00:31.5]} 45...
Rf7 {[%clk 0:00:02.1]} 46. Qxf7 {[%clk 0:00:30.2]} 1-0

[Event "*** Titled Tuesday Blitz"]
[Site "Chess.com"]
[Date "2021.04.06"]
[Round "9"]
[White "crazy_but_lazy"]
[Black "Omk124"]
[Result "1-0"]
[WhiteElo "2439"]
[BlackElo "2567"]
[TimeControl "180+1"]
[EndTime "11:46:03 PDT"]
[Termination "crazy_but_lazy won by checkmate"]

1. d4 {[%clk 0:03:00.9]} 1... Nf6 {[%clk 0:02:59.9]} 2. c4 {[%clk 0:02:59.7]}
2... g6 {[%clk 0:03:00.1]} 3. Nc3 {[%clk 0:02:58.6]} 3... d5 {[%clk 0:03:00.5]}
4. cxd5 {[%clk 0:02:58.4]} 4... Nxd5 {[%clk 0:03:01.4]} 5. e4 {[%clk 0:02:58.6]}
5... Nxc3 {[%clk 0:03:02]} 6. bxc3 {[%clk 0:02:59.2]} 6... Bg7 {[%clk
0:03:02.7]} 7. Qa4+ {[%clk 0:02:59.6]} 7... Nd7 {[%clk 0:02:58.8]} 8. Nf3 {[%clk
0:02:56.9]} 8... O-O {[%clk 0:02:58.8]} 9. Be2 {[%clk 0:02:54.6]} 9... c5 {[%clk
0:02:58.8]} 10. O-O {[%clk 0:02:51.4]} 10... cxd4 {[%clk 0:02:58.8]} 11. cxd4
{[%clk 0:02:52.3]} 11... Nc5 {[%clk 0:02:59.2]} 12. dxc5 {[%clk 0:02:52.4]}
12... Bxa1 {[%clk 0:02:58.8]} 13. e5 {[%clk 0:02:51.9]} 13... Bc3 {[%clk
0:02:55.9]} 14. Qf4 {[%clk 0:02:26.7]} 14... Qc7 {[%clk 0:02:50.5]} 15. Bc4
{[%clk 0:01:47]} 15... e6 {[%clk 0:01:34.4]} 16. Rd1 {[%clk 0:01:10]} 16... Qxc5
{[%clk 0:01:26]} 17. Qf6 {[%clk 0:00:46]} 17... Re8 {[%clk 0:00:18]} 18. Bh6
{[%clk 0:00:40]} 18... Qf8 {[%clk 0:00:16.8]} 19. Bxf8 {[%clk 0:00:34.8]} 19...
Rxf8 {[%clk 0:00:17.7]} 20. Rd8 {[%clk 0:00:31.1]} 20... h6 {[%clk 0:00:12.1]}
21. h4 {[%clk 0:00:20.7]} 21... b6 {[%clk 0:00:11.5]} 22. h5 {[%clk 0:00:20.5]}
22... gxh5 {[%clk 0:00:07.2]} 23. Rxf8+ {[%clk 0:00:17.6]} 23... Kxf8 {[%clk
0:00:08.1]} 24. Qd8+ {[%clk 0:00:18]} 24... Kg7 {[%clk 0:00:08.3]} 25. Qc7
{[%clk 0:00:18]} 25... Bb4 {[%clk 0:00:06.9]} 26. Bb5 {[%clk 0:00:16.1]} 26...
Bc5 {[%clk 0:00:07.4]} 27. Bc6 {[%clk 0:00:15.8]} 27... a5 {[%clk 0:00:03]} 28.
Bxa8 {[%clk 0:00:15.7]} 28... Ba6 {[%clk 0:00:03.4]} 29. Bc6 {[%clk 0:00:15]}
29... Bd3 {[%clk 0:00:01.4]} 30. Be8 {[%clk 0:00:14.8]} 30... Bg6 {[%clk
0:00:02.3]} 31. Nh4 {[%clk 0:00:14.5]} 31... a4 {[%clk 0:00:02.7]} 32. Nxg6
{[%clk 0:00:14.7]} 32... Kxg6 {[%clk 0:00:03.6]} 33. Qxf7+ {[%clk 0:00:14.7]}
33... Kg5 {[%clk 0:00:04.5]} 34. Qf6+ {[%clk 0:00:14.7]} 34... Kg4 {[%clk
0:00:04.4]} 35. Bxh5+ {[%clk 0:00:13.1]} 35... Kxh5 {[%clk 0:00:03.8]} 36. g3
{[%clk 0:00:12.9]} 36... Kg4 {[%clk 0:00:04.7]} 37. Kg2 {[%clk 0:00:12.8]} 37...
Bxf2 {[%clk 0:00:04.9]} 38. Qxf2 {[%clk 0:00:11.7]} 38... h5 {[%clk 0:00:05.8]}
39. Qf3+ {[%clk 0:00:11.9]} 39... Kg5 {[%clk 0:00:06.7]} 40. Qf6+ {[%clk
0:00:12.3]} 40... Kg4 {[%clk 0:00:07]} 41. Qf4# {[%clk 0:00:12.1]} 1-0

[Event "*** Titled Tuesday Blitz"]
[Site "Chess.com"]
[Date "2021.04.06"]
[Round "9"]
[White "ri4mi"]
[Black "zala02"]
[Result "1-0"]
[WhiteElo "2349"]
[BlackElo "2161"]
[TimeControl "180+1"]
[EndTime "11:46:06 PDT"]
[Termination "ri4mi won by resignation"]

1. e4 {[%clk 0:03:00.9]} 1... e5 {[%clk 0:02:59.6]} 2. Nf3 {[%clk 0:03:01.2]}
2... Nc6 {[%clk 0:02:59.6]} 3. Bc4 {[%clk 0:03:01.1]} 3... Bc5 {[%clk 0:02:58]}
4. b4 {[%clk 0:03:01.3]} 4... Bxb4 {[%clk 0:02:56.4]} 5. c3 {[%clk 0:03:01.4]}
5... Ba5 {[%clk 0:02:54]} 6. d4 {[%clk 0:02:57.1]} 6... d6 {[%clk 0:02:53.8]} 7.
O-O {[%clk 0:02:56.5]} 7... Nf6 {[%clk 0:02:49.2]} 8. Qb3 {[%clk 0:02:53]} 8...
O-O {[%clk 0:02:46.5]} 9. dxe5 {[%clk 0:02:48]} 9... dxe5 {[%clk 0:02:42.7]} 10.
Ba3 {[%clk 0:02:45.8]} 10... Bb6 {[%clk 0:02:33.4]} 11. Ng5 {[%clk 0:02:26.4]}
11... Na5 {[%clk 0:02:29.1]} 12. Bxf7+ {[%clk 0:02:25.4]} 12... Kh8 {[%clk
0:02:28.9]} 13. Qc2 {[%clk 0:02:11.7]} 13... c5 {[%clk 0:02:25.9]} 14. Nd2
{[%clk 0:01:33.4]} 14... Qe7 {[%clk 0:02:25.2]} 15. Bb3 {[%clk 0:01:33.1]} 15...
h6 {[%clk 0:02:17.9]} 16. Ngf3 {[%clk 0:01:28.5]} 16... Nxb3 {[%clk 0:02:16.7]}
17. axb3 {[%clk 0:01:26.5]} 17... Bg4 {[%clk 0:02:15.9]} 18. h3 {[%clk
0:01:20.8]} 18... Bh5 {[%clk 0:02:15.4]} 19. Rfe1 {[%clk 0:01:14.9]} 19... Rad8
{[%clk 0:02:13.4]} 20. Nh2 {[%clk 0:01:11.1]} 20... Bc7 {[%clk 0:02:03.4]} 21.
Nc4 {[%clk 0:01:04.4]} 21... b5 {[%clk 0:01:57.4]} 22. Ne3 {[%clk 0:01:04]}
22... Bg6 {[%clk 0:01:54.5]} 23. Nf5 {[%clk 0:00:44.5]} 23... Bxf5 {[%clk
0:01:53.6]} 24. exf5 {[%clk 0:00:45.4]} 24... Bd6 {[%clk 0:01:51.9]} 25. Bb2
{[%clk 0:00:40.9]} 25... Qc7 {[%clk 0:01:51.2]} 26. Ng4 {[%clk 0:00:37.6]} 26...
Nxg4 {[%clk 0:01:48]} 27. hxg4 {[%clk 0:00:38.5]} 27... Qe7 {[%clk 0:01:38.2]}
28. c4 {[%clk 0:00:34.3]} 28... Bb8 {[%clk 0:01:22.5]} 29. g3 {[%clk 0:00:20]}
29... Qg5 {[%clk 0:01:21.9]} 30. Qe4 {[%clk 0:00:19]} 30... bxc4 {[%clk
0:01:14.2]} 31. bxc4 {[%clk 0:00:19.9]} 31... Rfe8 {[%clk 0:01:12.6]} 32. Bc1
{[%clk 0:00:16]} 32... Qf6 {[%clk 0:01:11.3]} 33. Be3 {[%clk 0:00:15.7]} 33...
Rd7 {[%clk 0:01:03.4]} 34. Kg2 {[%clk 0:00:14.7]} 34... Red8 {[%clk 0:00:58.6]}
35. Rh1 {[%clk 0:00:14.2]} 35... Kg8 {[%clk 0:00:56.6]} 36. Rh5 {[%clk
0:00:11.7]} 36... Qf7 {[%clk 0:00:52.7]} 37. Rah1 {[%clk 0:00:08.9]} 37... a5
{[%clk 0:00:50.1]} 38. g5 {[%clk 0:00:08.7]} 38... Rd4 {[%clk 0:00:42.2]} 39.
Bxd4 {[%clk 0:00:06.5]} 39... Rxd4 {[%clk 0:00:43.1]} 40. Qe2 {[%clk 0:00:06.8]}
40... Qxf5 {[%clk 0:00:37.7]} 41. gxh6 {[%clk 0:00:06.2]} 41... g6 {[%clk
0:00:37.4]} 42. Rxf5 {[%clk 0:00:05.6]} 42... gxf5 {[%clk 0:00:36.8]} 43. h7+
{[%clk 0:00:06.5]} 43... Kh8 {[%clk 0:00:36.5]} 44. Qh5 {[%clk 0:00:06.3]} 44...
Rd8 {[%clk 0:00:33.5]} 45. Qxf5 {[%clk 0:00:05.8]} 1-0

[Event "*** Titled Tuesday Blitz"]
[Site "Chess.com"]
[Date "2021.04.06"]
[Round "9"]
[White "GMSrinath"]
[Black "kuli4ik"]
[Result "1-0"]
[WhiteElo "2838"]
[BlackElo "2878"]
[TimeControl "180+1"]
[EndTime "11:46:08 PDT"]
[Termination "GMSrinath won by resignation"]

1. Nf3 {[%clk 0:03:00.9]} 1... g6 {[%clk 0:02:58.8]} 2. g3 {[%clk 0:03:00.5]}
2... Bg7 {[%clk 0:02:57.2]} 3. Bg2 {[%clk 0:03:00.9]} 3... d6 {[%clk 0:02:56]}
4. O-O {[%clk 0:03:00]} 4... Nd7 {[%clk 0:02:56.4]} 5. c4 {[%clk 0:03:00.3]}
5... e5 {[%clk 0:02:56.7]} 6. d4 {[%clk 0:02:59.1]} 6... Ne7 {[%clk 0:02:57.1]}
7. Nc3 {[%clk 0:02:57.4]} 7... O-O {[%clk 0:02:57]} 8. h3 {[%clk 0:02:56.8]}
8... exd4 {[%clk 0:02:35.1]} 9. Nxd4 {[%clk 0:02:56.1]} 9... Re8 {[%clk
0:02:35.6]} 10. Bf4 {[%clk 0:02:32.7]} 10... Ne5 {[%clk 0:02:28]} 11. b3 {[%clk
0:02:28.7]} 11... a6 {[%clk 0:02:24.2]} 12. Qd2 {[%clk 0:02:28.2]} 12... Rb8
{[%clk 0:02:13.8]} 13. Rac1 {[%clk 0:02:21.6]} 13... c5 {[%clk 0:02:09.9]} 14.
Nc2 {[%clk 0:02:21.2]} 14... b5 {[%clk 0:02:10.4]} 15. Ne3 {[%clk 0:01:48]}
15... Be6 {[%clk 0:01:50.2]} 16. Ne4 {[%clk 0:01:42.7]} 16... Rb6 {[%clk
0:01:31.7]} 17. Rfd1 {[%clk 0:01:40.9]} 17... Qb8 {[%clk 0:01:14]} 18. Bg5
{[%clk 0:01:25.6]} 18... bxc4 {[%clk 0:00:48.9]} 19. bxc4 {[%clk 0:01:24.5]}
19... Rb2 {[%clk 0:00:34.6]} 20. Qxd6 {[%clk 0:01:23.3]} 20... Qxd6 {[%clk
0:00:32.9]} 21. Nxd6 {[%clk 0:01:24.2]} 21... Reb8 {[%clk 0:00:27.4]} 22. Bxe7
{[%clk 0:01:21.5]} 22... Rxe2 {[%clk 0:00:22.7]} 23. Ne4 {[%clk 0:01:17]} 23...
Rxa2 {[%clk 0:00:14.3]} 24. Nxc5 {[%clk 0:01:13.3]} 24... h5 {[%clk 0:00:11.6]}
25. Nxe6 {[%clk 0:01:12.2]} 25... fxe6 {[%clk 0:00:12.5]} 26. Rd8+ {[%clk
0:01:11.1]} 26... Rxd8 {[%clk 0:00:12.9]} 27. Bxd8 {[%clk 0:01:12]} 27... Nd3
{[%clk 0:00:13.7]} 28. Rf1 {[%clk 0:01:10.2]} 28... Bd4 {[%clk 0:00:13]} 29. Bg5
{[%clk 0:01:08.9]} 29... a5 {[%clk 0:00:12.3]} 30. Rd1 {[%clk 0:01:03.5]} 30...
Ra3 {[%clk 0:00:09.6]} 31. Bf1 {[%clk 0:01:00.2]} 31... Ne5 {[%clk 0:00:06.8]}
32. Be2 {[%clk 0:00:57.5]} 32... Bc5 {[%clk 0:00:06.7]} 33. Rd8+ {[%clk
0:00:50.7]} 33... Kg7 {[%clk 0:00:06.6]} 34. Rc8 {[%clk 0:00:50.9]} 34... Bd4
{[%clk 0:00:06.1]} 35. Rc7+ {[%clk 0:00:49.5]} 35... Kg8 {[%clk 0:00:06.6]} 36.
Nc2 {[%clk 0:00:24.7]} 36... Rxg3+ {[%clk 0:00:04.1]} 37. Kf1 {[%clk 0:00:25.2]}
37... Rxg5 {[%clk 0:00:04.5]} 38. Nxd4 {[%clk 0:00:25.7]} 38... a4 {[%clk
0:00:05]} 39. h4 {[%clk 0:00:20.9]} 39... Rf5 {[%clk 0:00:03.1]} 40. Nxf5 {[%clk
0:00:20.4]} 40... gxf5 {[%clk 0:00:04]} 41. Ra7 {[%clk 0:00:20.8]} 41... f4
{[%clk 0:00:02.8]} 42. c5 {[%clk 0:00:20.5]} 42... f3 {[%clk 0:00:03.7]} 43. Bb5
{[%clk 0:00:20.8]} 43... a3 {[%clk 0:00:03.4]} 44. c6 {[%clk 0:00:20.6]} 44...
a2 {[%clk 0:00:04.3]} 1-0